Cogmind - Beta 16.1 @@@ ROGUE MODE // 2026.02.23 @ 15:58:56 Player: Megaknight51 Result: Destroyed by Autobeam Turret with Autobeam Performance ------------- Evolutions (0) 0 Regions Visited (3) 600 Robots Destroyed (25) 125 Value Destroyed (565) 565 Prototype IDs (0) 0 Alien Tech Used (0) 0 Bonus (0) 0 TOTAL SCORE: 1290 Bonus ------- None Cogmind --------- Core Integrity 0/250 Matter 290/300 Energy 250/250 System Corruption 0% Temperature Cool (12) Movement Rolling (95) Location -10/Subcaves Parts ------- > --- POWER (1) -------- Ion Engine > --- PROPULSION (2) --- Wheel Subdweller Monowheel > --- UTILITY (2) ------ Small Storage Unit > --- WEAPON (2) ------- Beam Rifle Mining Laser > --- INVENTORY (8) ---- Subdweller Power Source Scrap Shield Particle Gun Subdweller Machine Gun Barrage Gun Subdweller Shrapnel Launcher Peak State ------------ > --- POWER ------------ Ion Engine > --- PROPULSION ------- Wheel Subdweller Monowheel > --- UTILITY ---------- Small Storage Unit > --- WEAPON ----------- Beam Rifle Barrage Gun > --- INVENTORY -------- Light Ion Engine Light Ion Engine Subdweller Power Source Particle Gun Subdweller Machine Gun Subdweller Shrapnel Launcher Mining Laser [Rating: 11] Favorites ----------- Power Ion Engine Engine Ion Engine Propulsion Wheel Wheel Wheel Utility Small Storage Unit Storage Small Storage Unit Weapon Light Assault Rifle Energy Gun Small Laser Ballistic Gun Light Assault Rifle Ballistic Cannon Battle Cannon Special Weapon Mining Laser Build | -11 -10 -10 -10 ------- Run | Yrd Mat Min Sub Slots Evolved . | . . . . Power . | . . . . Propulsion . | . . . . Utility . | . . . . Weapon . | . . . . Parts Attached 17 | 6 1 1 9 Power 2 | 1 . . 1 Engine 2 | 1 . . 1 Core . | . . . . Reactor . | . . . . Propulsion 7 | 2 . 1 4 Treads . | . . . . Leg . | . . . . Wheel 7 | 2 . 1 4 Hover . | . . . . Flight . | . . . . Utility 1 | 1 . . . Device . | . . . . Storage 1 | 1 . . . Processor . | . . . . Hackware . | . . . . Protection . | . . . . Artifact . | . . . . Weapon 7 | 2 1 . 4 Energy Gun 3 | 1 . . 2 Energy Cannon . | . . . . Ballistic Gun 2 | 1 . . 1 Ballistic Cannon 1 | . . . 1 Launcher . | . . . . Special Weapon 1 | . 1 . . Impact Weapon . | . . . . Slashing Weapon . | . . . . Piercing Weapon . | . . . . Special Melee Weapon . | . . . . Unidentified Prototypes . | . . . . Parts Lost 5 | . . 1 4 Power . | . . . . Propulsion 3 | . . 1 2 Utility . | . . . . Weapon 2 | . . . 2 Highest Loss Streak 2 | . . 1 2 To Critical Strikes . | . . . . Average Backups 7 | 4 7 7 7 Power 2 | 1 2 2 2 Propulsion 1 | 1 3 2 . Utility . | . . . . Weapon 3 | . 2 3 4 Tool/Special . | . . . . Unused Backups 9 | . . . 9 Power 3 | . . . 3 Propulsion . | . . . . Utility . | . . . . Weapon 6 | . . . 6 Tool/Special . | . . . . Average Slot Usage (%) 84 | . 85 84 84 Engine 14 | . 14 14 14 Wheel 27 | . 28 27 27 Storage 14 | . 14 14 14 Energy Gun 14 | . 14 14 14 Ballistic Gun 8 | . 9 14 6 Ballistic Cannon 3 | . . . 5 Special Weapon 1 | . 4 . 1 Peak Build Rating 11 | 6 6 6 11 Average Rating 7 | 5 6 5 8 On Entrance 4 | . 6 6 6 Avg Prop Armor Cover (%) . | . . . . Naked Turns . | . . . . Heaviest Build 16 | 12 12 12 16 Greatest Support 30 | 26 26 26 30 Greatest Overweight (x) 1 | . . 1 1 Average Overweight (x) . | . . . . Largest Inventory Capacity 8 | 8 8 8 8 Average Capacity 7 | 7 8 8 8 Most Carried 8 | 7 8 8 8 Average Carried 7 | 4 7 7 7 Final Capacity 8 | 8 8 8 8 Final Carried 8 | 7 8 8 7 Class Distribution -------------------- 52% | Mutant 47% | Scavenger-Mutant Dominant Class ---------------- Mutant | -10/Materials Mutant | -10/Mines Scavenger-Mutant | -10/Subcaves Resources | -11 -10 -10 -10 ----------- Run | Yrd Mat Min Sub Matter Collected 509 | 271 14 28 196 Remotely . | . . . . Salvage Created 757 | 187 27 152 391 Parts 60 | 24 4 9 23 Haulers Intercepted . | . . . . Recyclers Shooed . | . . . . Parts Field Recycled . | . . . . Retrieved Matter . | . . . . Parts Self-Destructed 17 | . . . 17 Prevented . | . . . . Parts Restored . | . . . . Kills | -11 -10 -10 -10 ------- Run | Yrd Mat Min Sub Combat Hostiles Destroyed 18 | . 2 6 10 Guns 17 | . 2 6 9 Cannons 1 | . . . 1 Classes Destroyed 6 | 2 1 1 2 Tunneler 6 | 6 . . . Recycler 1 | 1 . . . Swarmer 7 | . 2 4 1 Grunt 4 | . . 2 2 Sentry 1 | . . . 1 Subdweller 6 | . . . 6 Best Kill Streak 2 | 2 2 2 2 Combat Bots Only 2 | . 2 2 2 Max Kills in Single Turn 1 | 1 1 1 1 Gunslinging . | . . . . Exploded . | . . . . Melee . | . . . . Uniques/NPCs Destroyed . | . . . . Combat | -11 -10 -10 -10 -------- Run | Yrd Mat Min Sub Hostile Shots Fired 101 | . 14 21 66 Missed 29 | . 3 5 21 Hits 72 | . 11 16 45 Projectile 72 | . 11 16 45 Damage Taken 879 | . 89 151 639 Core 251 | . 16 43 192 Absorbed by Shields . | . . . . Core Remaining (%) 100 | 100 . . . Volleys Fired 70 | 11 11 10 38 Largest 2 | 2 2 2 2 Hottest 121 | 60 100 60 121 Shots Fired 129 | 22 18 20 69 Gun 107 | 22 14 20 51 Cannon 13 | . . . 13 Launcher . | . . . . Special 9 | . 4 . 5 Kinetic 58 | 11 7 10 30 Thermal 71 | 11 11 10 39 Explosive . | . . . . Electromagnetic . | . . . . Robot Hit Streak 24 | 4 2 6 24 Robot Miss Streak 3 | 2 3 2 2 Penetration Max . | . . . . Secondary Targets 2 | . 1 1 . Max Gunslinging Chain 1 | . 1 1 . Shots Hit Robots 80 | 11 5 11 53 Core Hits 40 | 8 2 9 21 Critical Kills . | . . . . Critical Parts Destroyed . | . . . . Critical Strikes 4 | . . . 4 Burn 4 | . . . 4 Melee Attacks . | . . . . Impact . | . . . . Slashing . | . . . . Piercing . | . . . . Sneak Attacks . | . . . . Combat Hostiles . | . . . . Follow-up Attacks . | . . . . Damage Inflicted 1036 | 106 57 115 758 Guns 819 | 106 57 115 541 Cannons 217 | . . . 217 Explosions . | . . . . Melee . | . . . . Ramming . | . . . . Kinetic 459 | 31 22 34 372 Thermal 577 | 75 35 81 386 Explosive . | . . . . Electromagnetic . | . . . . Impact . | . . . . Slashing . | . . . . Piercing . | . . . . Highest Corruption . | . . . . Average Corruption . | . . . . Corruption Purged . | . . . . Corruption Blocked . | . . . . Overload Shots . | . . . . Overflow Damage . | . . . . Projectiles . | . . . . Explosions . | . . . . Melee . | . . . . Knockbacks 6 | . . . 6 Impact . | . . . . Kinetic 6 | . . . 6 Secondary . | . . . . Self-Inflicted Damage . | . . . . Shots . | . . . . Rammed . | . . . . Targets Rammed . | . . . . Kicked . | . . . . Crushed . | . . . . Highest Temperature 82 | 40 40 82 15 Average Temperature 18 | 18 20 27 5 Received Heat Transfer 282 | . . 42 240 Siege Activations . | . . . . Martial Activations . | . . . . Shielding Activations . | . . . . Robots Disrupted . | . . . . Combat Hostiles . | . . . . Robots Corrupted . | . . . . Combat Hostiles . | . . . . Parts Fried . | . . . . Impact Corruptions . | . . . . Robots Melted . | . . . . Combat Hostiles . | . . . . Parts Melted 2 | . . . 2 Heat Transferred 1696 | 175 75 175 1271 Parts Sabotaged . | . . . . Parts Stolen . | . . . . Parts Stripped . | . . . . Power Chain Reactions . | . . . . Alert | -11 -10 -10 -10 ------- Run | Yrd Mat Min Sub Maximum Alert Level . | . . . . Low Security (%) 100 | 100 100 100 . Level 1 . | . . . . Level 2 . | . . . . Level 3 . | . . . . Level 4 . | . . . . Level 5 . | . . . . High Security . | . . . . Max Security . | . . . . Peak Influence 65 | 10 50 65 . Initial 11 | . . 11 . Average 16 | 1 11 28 . Influence Increases 363 | 35 53 155 120 Destroy 0b10 Robot/C 240 | . 40 120 80 Destroy 0b10 Robot/NC 35 | 35 . . . Destroy Leader 40 | . 10 20 10 Destroy Structure 3 | . 3 . . Lose Combat Pursuer 45 | . . 15 30 Influence Decreases 345 | 35 23 185 102 Entered New Map 19 | . . 19 . Time Decay 306 | 35 23 156 92 Lost Part 20 | . . 10 10 Squads Dispatched . | . . . . Investigation . | . . . . Extermination . | . . . . Reinforcement . | . . . . Assault . | . . . . Garrison . | . . . . Intercept . | . . . . Searches Triggered . | . . . . Construction Impeded . | . . . . Haulers Reinforced . | . . . . Active Scanning Responses . | . . . . Cargo Convoy Interrupts . | . . . . Stealth | -11 -10 -10 -10 --------- Run | Yrd Mat Min Sub Distress Signals . | . . . . Communications Jammed . | . . . . Distress Signals . | . . . . Times Spotted 27 | . 4 8 15 Peak Tracking Total 4 | . 4 3 2 Tactical Retreats 3 | . . 1 2 Traps | -11 -10 -10 -10 ------- Run | Yrd Mat Min Sub Traps Triggered . | . . . . Indirectly . | . . . . Trap Hack Attempts . | . . . . Triggered . | . . . . Disarmed . | . . . . Reprogrammed . | . . . . Reused . | . . . . Traps Extracted . | . . . . Installed . | . . . . Triggered . | . . . . Machines | -11 -10 -10 -10 ---------- Run | Yrd Mat Min Sub Machines Disabled . | . . . . Max in Single Turn . | . . . . Machines Repaired . | . . . . Machines Dismantled . | . . . . Machines Sabotaged . | . . . . Overloaded Fab Kills . | . . . . Hacking | -11 -10 -10 -10 --------- Run | Yrd Mat Min Sub Machines Accessed . | . . . . Terminals . | . . . . Fabricators . | . . . . Repair Stations . | . . . . Recycling Units . | . . . . Scanalyzers . | . . . . Garrison Access . | . . . . Total Hacks . | . . . . Successful . | . . . . Failed . | . . . . Catastrophic . | . . . . Database Lockouts . | . . . . Manual . | . . . . Terminals . | . . . . Fabricators . | . . . . Repair Stations . | . . . . Recycling Units . | . . . . Scanalyzers . | . . . . Garrison Access . | . . . . Terminal Hacks . | . . . . Fabricator Hacks . | . . . . Repair Station Hacks . | . . . . Recycling Unit Hacks . | . . . . Scanalyzer . | . . . . Garrison Access Hacks . | . . . . Unauthorized Hacks . | . . . . Terminals . | . . . . Fabricators . | . . . . Repair Stations . | . . . . Recycling Units . | . . . . Scanalyzers . | . . . . Garrison Access . | . . . . Data Cores Recovered . | . . . . Used . | . . . . Hacking Detections . | . . . . Full Trace Events . | . . . . Feedback Events . | . . . . Feedback Blocked . | . . . . Robot Schematics Acquired . | . . . . Robots Built . | . . . . Authchips . | . . . . Time . | . . . . Total Robot Build Rating . | . . . . Part Schematics Acquired . | . . . . Parts Built . | . . . . Authchips . | . . . . Time . | . . . . Total Part Build Rating . | . . . . Part Studies Acquired . | . . . . Parts Repaired . | . . . . Time . | . . . . Parts Recycled . | . . . . Recycled Matter . | . . . . Retrieved Matter . | . . . . Retrieved Components . | . . . . Parts Scanalyzed . | . . . . Part Schematics Acquired . | . . . . Parts Damaged . | . . . . Bothacking | -11 -10 -10 -10 ------------ Run | Yrd Mat Min Sub Used RIF Installer . | . . . . Robots Hacked . | . . . . Non-combat . | . . . . Combat . | . . . . Robot Hacks Applied . | . . . . Relay Couplers Released . | . . . . Fabnet Peak Effective % . | . . . . Robots Rewired . | . . . . Allies Hacked . | . . . . Hacks Repelled . | . . . . Allies | -11 -10 -10 -10 -------- Run | Yrd Mat Min Sub Total Allies . | . . . . Largest Group . | . . . . Highest-Rated Group . | . . . . Highest-Rated Ally . | . . . . Total Orders . | . . . . Ally Attacks . | . . . . Total Damage . | . . . . Kills . | . . . . Allies Corrupted . | . . . . Allies Melted . | . . . . Intel | -11 -10 -10 -10 ------- Run | Yrd Mat Min Sub Active Infowar (turns) . | . . . . Robot Analysis Total . | . . . . Derelict Logs Recovered 2 | . . 1 1 Drone Launches . | . . . . Drone Recoveries . | . . . . Exploration | -11 -10 -10 -10 ------------- Run | Yrd Mat Min Sub Turns Passed 1727 | 226 155 387 959 Spaces Moved 1301 | 120 129 341 711 Core 2 | 2 . . . Treads . | . . . . Legs . | . . . . Wheels 1299 | 118 129 341 711 Hover . | . . . . Flight . | . . . . Fastest Speed 50 | 50 90 90 80 Average Speed 87 | 88 90 90 86 Slowest Speed 95 | 90 90 95 95 Overloaded Moves . | . . . . Propulsion Burnouts . | . . . . Robots Hopped . | . . . . Potential Cave-ins . | . . . . Cave-ins Triggered . | . . . . Exploration Rate (%) 32 | 4 26 65 34 Regions Visited 3 Branch Regions 2 Pre-discovered Areas 1 | . . 1 . Known Exits Taken . | . . . . Unknown Exits Taken 3 | 1 1 1 . Scrap Searched 8 | . . . 8 Spaces Dug 4 | . 4 . . Terrain Destroyed 4 | . 4 . . Melee . | . . . . Projectile 4 | . 4 . . AOE . | . . . . Terrain Rammed . | . . . . Walls Destroyed . | . . . . Machines Disabled . | . . . . Actions | -11 -10 -10 -10 --------- Run | Yrd Mat Min Sub Total 1744 | 216 142 402 984 Wait 325 | 73 . 50 202 Move 1298 | 119 128 340 711 Hop . | . . . . Pick Up 18 | 7 1 1 9 Fast Attach 8 | 6 . . 2 Attach 4 | . . 1 3 Detach . | . . . . Swap 10 | . 2 . 8 Drop 11 | . . . 11 Fire 70 | 11 11 10 38 Melee . | . . . . Ram . | . . . . Kick . | . . . . Crush . | . . . . Escape Stasis . | . . . . Rewire . | . . . . Trap . | . . . . Miscellaneous . | . . . . Route ------- -11/Scrapyard -10/Materials -10/Mines (discovered 4 exits: [*Mat x2] / [*Exi] / [*Sub]) -10/Subcaves (discovered 2 exits: [*Mat] / [*Rec]) History --------- Turn | Location | Event 11 | -11/Scrapyard | Discovered new exit (range 16) 227 | -11/Scrapyard | Entered Materials 309 | -10/Materials | Build established: Mutant 346 | -10/Materials | Met 8R-AWN 368 | -10/Materials | Discovered new exit (range 8) 382 | -10/Materials | Entered Mines 544 | -10/Mines | Discovered new exit (range 6) 546 | -10/Mines | Learned location of Mines (-9) 658 | -10/Mines | Deemed a non-threat by the Exiles lab entrance 658 | -10/Mines | Discovered new exit (range 5) 691 | -10/Mines | Discovered new exit (range 11) 766 | -10/Mines | Discovered new exit (range 4) 769 | -10/Mines | Entered Subcaves 770 | -10/Subcaves | Approached by a straggling Scientist 838 | -10/Subcaves | A swath of the cavern ceiling suddenly collapsed 925 | -10/Subcaves | Discovered new exit (range 9) 1034 | -10/Subcaves | Core integrity fell below 50% 1195 | -10/Subcaves | Build established: Scavenger-Mutant 1237 | -10/Subcaves | Shifting Twisted Machinery released Sub. Beam Cannon 1248 | -10/Subcaves | Shifting Twisted Machinery released Battle Cannon 1356 | -10/Subcaves | Learned 4 Materials zone layouts 1453 | -10/Subcaves | Core integrity fell below 20% 1668 | -10/Subcaves | Discovered new exit (range 16) 1724 | -10/Subcaves | Shifting Twisted Machinery released Battle Cannon 1728 | -10/Subcaves | Destroyed by Autobeam Turret with Autobeam Last Messages --------------- 01403_ Found Sub. Power Source. 01403_ Found 70 Matter. 01412_ Dropped Med. Laser. 01413_ Acquired Barrage Gun. 01438_ Subatomizers dissect the Sub. Beam Cannon. 01446_ Wheel destroyed. 01447_ 00-PYG(R) knocked back. 01448_ Acquired 3 matter. 01448_ Battle Cannon destroyed. 01452_ Subatomizers dissect the Sub. Beam Cannon. 01456_ 00-PYG(R) destroyed. 01459_ Acquired 1 matter. 01461_ Acquired 17 matter. 01463_ Subatomizers dissect the Sub. Beam Cannon, destroying it. 01463_ Acquired Sub. Monowheel. 01464_ Acquired 10 matter. 01668_ EXIT=FOUND Battle Cannon falls loose from the Twisted Machinery. 01727_ Dropped Lgt. Ion Engine. 01728_ Acquired Scrap Shield. Map ----- +----------------------------------------------------+ | ?????????????????????????????????????????????????? | | ?????????????????????????????????????????????????? | | ?????????????????????????????????????????????????? | | ?????????????????????????????????????????????????? | | ?????????????????????????????????????????????????? | | ?????????????????????????????????????????????????? | | ?????????????????????????????????????????????????? | | ?????????????????????????????????????????????????? | | ?????????????????????????????????????????????????? | | ?????????????????????????????????????????????????? | | ?????????????????????????????????????????????????? | | ?????????????????????????????????????????????????? | | ?????????????????????????????????????????????????? | | ?????????????????????????????????????????????????? | | ?????????????????????????????????????????????????? | | ?????????????????????????????????????????????????? | | ?????????????????????????????????????????????????? | | ????????????????????????????????????##???????????? | | ???????????????????????????????????""#???????????? | | ?????????????????????????????######]#????????????? | | ?????????????????????????????#"" ]"##???????????? | | ???????????????????????????###" ????????????? | | ???????????????????????????# #??????????????? | | ??????????????#" ?????????# ##???????????????? | | ??????????????#" #######%% ##????####??????? | | ??????????????#""t *@&%%& ##???# #??????? | | ?????????????#< *=&& % ##?## #??????? | | ?????????????##""t %!* %[ & ### #??????? | | ??????????????#" ######### | ##??????? | | ??????????????#" ????????## # ##???????? | | ??????????????#"""??????????# ## #????????? | | ????????????????#??????????## ## # ##???????? | | ???????????????????????????# ### # #???????? | | ???????????????????????????# #### #???????? | | ???????????????????????????# # # #???????? | | ???????????????????????????## #???????? | | ????????????????????????????# ##??????? | | ????????????????????????????## #??????? | | ?????????????????????????????## #??????? | | ??????????????????????????????# ##??????? | | ??????????????????????????????# ##???????? | | ????????????????????????????#?## ##????????? | | ??????????????????????????### # ##????????? | | ??????????????????????????# #????????? | | ??????????????????????????## #????????? | | ??????????????????????????# # #????????? | | ??????????????????????????## #### ###????????? | | ???????????????????????????# #??# #??????????? | | ??????????????????????????# ???# #??????????? | | ??????????????????????????## ????# ##??????????? | +----------------------------------------------------+ Best States ------------- Heat Dissipation 25 Energy Generation 10 Energy Capacity 250 Matter Stores 300 Matter Capacity 300 Sight Range 16 Terrain Scan Density 10 Evasion (%) 44 Item Schematics ----------------- None Robot Schematics ------------------ None Fabricated ------------ Nothing Repaired ---------- Nothing Studied --------- None Alien Tech Used ----------------- None Achievements -------------- None Challenges ------------ None Game ------ Seed BlastAssemblyPendant Manual? 0 Play Time 00:10:02 Cumulative 96.9 hours Start 2026.02.23 @ 15:49:21 End 2026.02.23 @ 15:58:56 Sessions 1 Manual Loads 0 Difficulty Rogue Special Mode None Game No. 197 Rogue 197 Adventurer 0 Explorer 0 Win Type - Total 2 Types 1/0/0/1/0/0/0/0/0/0 Lore% 53 Gallery% 40 Achievement% 40 Wizard Run 0 Options --------- Layout 0 ASCII 0 Keyboard 1 Movement Arrows Keybinds 0 Fullscreen 1 Font 18/Smallcaps Map View 38x25 Zoom Use 54% Tactical HUD 1 Map Filters NONE Filters NONE Steam 1 RUN: 53b2b998-be8b-4775-9fea-985dba0b328d